[Event "20th Prague Open 2022"]
[Site "Prague"]
[Date "2022.01.07"]
[Round "1.3"]
[White "Mirzoev, Azer"]
[Black "Cap, Piotr"]
[Result "1-0"]
[ECO "B07"]
[WhiteElo "2420"]
[BlackElo "2014"]
[Annotator "NA"]
[PlyCount "97"]
[EventDate "2022.01.07"]
[EventType "swiss"]
[EventCountry "CZE"]
[SourceTitle "playchess.com"]
[Source "ChessBase"]
[SourceQuality "1"]
[TimeControl "40/5400+30:1800+30"]

1. d4 {[%emt 0:00:06]} d6 {[%emt 0:00:36]} 2. e4 {[%emt 0:00:10]} Nf6 {[%emt 0:00:31]} 3. Nc3 {[%emt 0:00:07]} g6 {[%emt 0:00:33]} 4. Be3 {[%emt 0:00:07]} Bg7 {[%emt 0:00:27]} 5. Qd2 {[%emt 0:00:12]} a6 {[%emt 0:02:01]} 6. Bh6 {[%emt 0:00:14]} Bxh6 {[%emt 0:02:11]} 7. Qxh6 {[%emt 0:00:11]} b5 {[%emt 0:02:25]} 8. f3 {[%emt 0:00:21]} e5 {[%emt 0:01:34]} 9. Nge2 {[%emt 0:01:34]} Qe7 {[%emt 0:03:30]} 10. dxe5 {[%emt 0:05:18]} (10. a3 $14) 10... dxe5 {[%emt 0:01:22]} 11. O-O-O {[%emt 0:00:08]} Bb7 {[%emt 0:03:34]} 12. h4 {[%emt 0:07:47]} Nbd7 {[%emt 0:04:05]} 13. g4 {[%emt 0:00:40]} Qf8 {[%emt 0:02:50]} 14. Qd2 {[%emt 0:02:42]} Nb6 {[%emt 0:03:06]} 15. Ng3 {[%emt 0:06:34]} h5 {[%emt 0:05:30]} 16. g5 {[%emt 0:12:49]} Nfd7 {[%emt 0:01:28]} 17. Bh3 {[%emt 0:00:07]} Qe7 {[%emt 0:05:37]} (17... O-O-O $1 $11) 18. Nd5 {[%emt 0:02:31]} Bxd5 {[%emt 0:00:12]} 19. exd5 {[%emt 0:00:13]} Nc4 {[%emt 0:02:14]} 20. Qc3 {[%emt 0:00:22]} Ndb6 {[%emt 0:04:20]} 21. b3 {[%emt 0:12:43]} Qa3+ {[%emt 0:03:14]} 22. Kb1 $16 {[%emt 0:00:04]} Na4 {[%emt 0:05:44]} 23. Qa1 {[%emt 0:00:09]} Rb8 {[%emt 0:06:48]} 24. Ne4 {[%emt 0:07:31]} O-O {[%emt 0:02:07]} 25. Rhe1 {[%emt 0:05:58]} Nab2 {[%emt 0:09:04]} 26. Rc1 {[%emt 0:05:53]} Rfd8 {[%emt 0:02:51]} 27. Bf1 {[%emt 0:00:41]} Rxd5 {[%emt 0:03:30]} 28. Bxc4 {[%emt 0:00:13]} Nxc4 {[%emt 0:00:52]} 29. Qc3 {[%emt 0:00:08]} Nd2+ {[%emt 0:05:06]} 30. Nxd2 {[%emt 0:00:27]} b4 {[%emt 0:01:06]} 31. Qa1 {[%emt 0:06:21]} Rxd2 {[%emt 0:00:38]} 32. Qxe5 {[%emt 0:00:10]} Rb5 {[%emt 0:05:21]} 33. Qf6 {[%emt 0:09:01]} Rb8 {[%emt 0:02:10]} 34. Re7 {[%emt 0:03:05]} Rf8 {[%emt 0:00:35]} 35. Rxc7 {[%emt 0:01:32]} Qa5 {[%emt 0:01:09]} 36. Qf4 {[%emt 0:01:54]} Rd5 {[%emt 0:02:53]} 37. Rc4 {[%emt 0:00:48]} Rb5 {[%emt 0:01:04]} 38. Re1 {[%emt 0:00:51]} Qb6 {[%emt 0:00:29]} 39. Kb2 {[%emt 0:01:47]} a5 {[%emt 0:00:13]} 40. Re5 {[%emt 0:00:40]} Rxe5 {[%emt 0:05:54]} 41. Qxe5 {[%emt 0:30:09]} a4 {[%emt 0:01:57]} 42. bxa4 {[%emt 0:00:00]} Qb7 {[%emt 0:04:30]} 43. Qe4 Qd7 44. Rxb4 {[%emt 0:00:00]} Re8 {[%emt 0:01:21]} 45. Qd3 {[%emt 0:00:00]} Qe7 {[%emt 0:00:56]} 46. a3 {[%emt 0:00:00]} Qe5+ {[%emt 0:00:37]} 47. Qd4 {[%emt 0:00:00]} Qg3 {[%emt 0:01:10]} 48. Qf4 {[%emt 0:00:00]} Qe1 {[%emt 0:00:41]} 49. Rb8 {[%emt 0:00:00]} 1-0

[Event "20th Prague Open 2022"]
[Site "Prague"]
[Date "2022.01.07"]
[Round "1.4"]
[White "Lhotska, Anna"]
[Black "Neuman, Petr"]
[Result "0-1"]
[ECO "B57"]
[WhiteElo "2014"]
[BlackElo "2402"]
[Annotator "ChessBase"]
[PlyCount "62"]
[EventDate "2022.01.07"]
[EventType "swiss"]
[EventCountry "CZE"]
[SourceTitle "playchess.com"]
[Source "ChessBase"]
[SourceQuality "1"]
[TimeControl "40/5400+30:1800+30"]

1. e4 {[%emt 0:00:04]} c5 {[%emt 0:00:09]} 2. Nf3 {[%emt 0:00:12]} d6 {[%emt 0:00:05]} 3. d4 {[%emt 0:00:06]} cxd4 {[%emt 0:00:04]} 4. Nxd4 {[%emt 0:00:06]} Nf6 {[%emt 0:00:04]} 5. Nc3 {[%emt 0:00:09]} Nc6 {[%emt 0:00:05]} 6. Bc4 {[%emt 0:00:50]} Qb6 {[%emt 0:00:50]} 7. Nb3 {[%emt 0:12:10]} e6 {[%emt 0:00:46]} 8. O-O {[%emt 0:02:09]} a6 {[%emt 0:00:47]} 9. Be3 {[%emt 0:02:51]} Qc7 {[%emt 0:00:07]} 10. a4 {[%emt 0:04:07]} b6 {[%emt 0:04:37]} 11. f4 {[%emt 0:07:25]} Be7 {[%emt 0:01:12]} 12. Qe1 {[%emt 0:04:38]} O-O {[%emt 0:05:09]} 13. Qg3 {[%emt 0:05:31]} Rb8 {[%emt 0:21:46]} 14. Rae1 {[%emt 0:10:28]} g6 {[%emt 0:06:07]} 15. Bd3 {[%emt 0:18:57]} Na5 {[%emt 0:06:45]} 16. Nd4 {[%emt 0:02:43]} Nc4 {[%emt 0:01:49]} 17. Bc1 {[%emt 0:01:08]} Qc5 {[%emt 0:01:10]} 18. Nce2 {[%emt 0:02:37]} Bb7 {[%emt 0:07:41]} 19. b3 {[%emt 0:04:50]} Na5 {[%emt 0:00:36]} 20. Be3 {[%emt 0:02:00]} Qc7 {[%emt 0:01:06]} 21. f5 {[%emt 0:06:30]} Nh5 {[%emt 0:04:48]} 22. Qg4 {[%emt 0:01:50]} Nf6 {[%emt 0:01:11]} 23. Qh3 {[%emt 0:00:46]} gxf5 {[%emt 0:05:57]} 24. Nxf5 {[%emt 0:07:04]} exf5 {[%emt 0:00:57]} 25. Qxf5 {[%emt 0:00:37]} Nc6 {[%emt 0:04:12]} 26. Bg5 {[%emt 0:02:56]} Bc8 {[%emt 0:01:00]} 27. Qf2 {[%emt 0:00:21]} Ng4 {[%emt 0:00:47]} 28. Qf4 {[%emt 0:00:23]} Nce5 {[%emt 0:00:56]} 29. h3 {[%emt 0:00:39]} Ng6 {[%emt 0:00:19]} 30. Qd2 {[%emt 0:00:23]} Qc5+ {[%emt 0:00:08]} 31. Kh1 {[%emt 0:00:26]} Bxg5 {[%emt 0:00:09]} 0-1

[Event "20th Prague Open 2022"]
[Site "Prague"]
[Date "2022.01.07"]
[Round "1.5"]
[White "Haring, Filip"]
[Black "Kobl, Rudolf"]
[Result "1-0"]
[ECO "B48"]
[WhiteElo "2398"]
[BlackElo "2009"]
[Annotator "ChessBase"]
[PlyCount "91"]
[EventDate "2022.01.07"]
[EventType "swiss"]
[EventCountry "CZE"]
[SourceTitle "playchess.com"]
[Source "ChessBase"]
[SourceQuality "1"]
[TimeControl "40/5400+30:1800+30"]

1. e4 {[%emt 0:00:04]} c5 {[%emt 0:00:39]} 2. Nf3 {[%emt 0:00:12]} e6 {[%emt 0:00:29]} 3. Nc3 {[%emt 0:00:57]} Nc6 {[%emt 0:00:21]} 4. d4 {[%emt 0:01:22]} cxd4 {[%emt 0:00:14]} 5. Nxd4 {[%emt 0:00:07]} Qc7 {[%emt 0:00:06]} 6. Be3 {[%emt 0:01:38]} a6 {[%emt 0:00:06]} 7. Qf3 {[%emt 0:00:32]} Bd6 {[%emt 0:00:29]} 8. O-O-O {[%emt 0:02:10]} Be5 {[%emt 0:00:09]} 9. g3 {[%emt 0:00:58]} Nge7 {[%emt 0:00:53]} 10. Qe2 {[%emt 0:02:17]} b5 {[%emt 0:01:08]} 11. f4 {[%emt 0:02:17]} Nxd4 {[%emt 0:00:27]} 12. Bxd4 {[%emt 0:00:14]} Bxd4 {[%emt 0:00:06]} 13. Rxd4 {[%emt 0:00:07]} Rb8 {[%emt 0:00:48]} 14. Bg2 {[%emt 0:06:13]} Bb7 {[%emt 0:08:49]} 15. Rhd1 {[%emt 0:01:45]} Bc6 {[%emt 0:04:15]} 16. Nd5 {[%emt 0:00:25]} Nxd5 {[%emt 0:14:42]} 17. exd5 {[%emt 0:00:12]} Ba8 {[%emt 0:06:01]} 18. f5 {[%emt 0:00:56]} O-O {[%emt 0:13:39]} 19. f6 {[%emt 0:14:33]} gxf6 {[%emt 0:12:52]} 20. Kb1 {[%emt 0:04:04]} Rbc8 {[%emt 0:07:07]} 21. Rh4 {[%emt 0:08:18]} Qe5 {[%emt 0:08:15]} 22. Re4 {[%emt 0:00:04]} Qc7 {[%emt 0:00:54]} 23. c3 {[%emt 0:03:35]} Kh8 {[%emt 0:02:54]} 24. Qh5 {[%emt 0:01:32]} Rg8 {[%emt 0:02:46]} 25. Qxf7 {[%emt 0:00:23]} Rcf8 {[%emt 0:00:27]} 26. Qh5 {[%emt 0:01:58]} f5 {[%emt 0:02:26]} 27. Re2 {[%emt 0:06:21]} Qd6 {[%emt 0:04:35]} 28. Rf2 {[%emt 0:03:59]} Qc5 {[%emt 0:02:39]} 29. Qe2 {[%emt 0:02:39]} Rg6 {[%emt 0:01:05]} 30. Rf4 {[%emt 0:03:27]} a5 {[%emt 0:01:03]} 31. a3 {[%emt 0:05:03]} Kg8 {[%emt 0:00:53]} 32. Rh4 {[%emt 0:03:12]} Rb8 {[%emt 0:01:23]} 33. dxe6 {[%emt 0:05:13]} Bxg2 {[%emt 0:00:03]} 34. exd7 {[%emt 0:01:33]} Bd5 {[%emt 0:04:02]} 35. Qe8+ {[%emt 0:00:06]} Rxe8 {[%emt 0:00:42]} 36. dxe8=Q+ {[%emt 0:00:08]} Kg7 {[%emt 0:00:13]} 37. Rxd5 {[%emt 0:01:02]} Qxd5 {[%emt 0:00:22]} 38. Qe7+ {[%emt 0:00:03]} Kg8 {[%emt 0:00:52]} 39. Qxh7+ {[%emt 0:00:10]} Kf8 {[%emt 0:00:04]} 40. Qxg6 {[%emt 0:00:08]} Qd1+ {[%emt 0:00:05]} 41. Ka2 {[%emt 0:30:02]} Qd5+ {[%emt 0:30:26]} 42. c4 {[%emt 0:00:05]} bxc4 {[%emt 0:00:11]} 43. Rh8+ {[%emt 0:00:15]} Ke7 {[%emt 0:00:05]} 44. Rh7+ {[%emt 0:00:03]} Kd8 {[%emt 0:00:14]} 45. Qf6+ {[%emt 0:00:25]} Kc8 {[%emt 0:00:27]} 46. Qf8+ {[%emt 0:00:04]} 1-0

[Event "20th Prague Open 2022"]
[Site "Prague"]
[Date "2022.01.07"]
[Round "1.7"]
[White "Czerw, Dawid"]
[Black "Ricken, Katharina"]
[Result "1/2-1/2"]
[ECO "E00"]
[WhiteElo "2396"]
[BlackElo "2004"]
[Annotator "ChessBase"]
[PlyCount "77"]
[EventDate "2022.01.07"]
[EventType "swiss"]
[EventCountry "CZE"]
[SourceTitle "playchess.com"]
[Source "ChessBase"]
[SourceQuality "1"]
[TimeControl "40/5400+30:1800+30"]

1. d4 {[%emt 0:00:03]} e6 {[%emt 0:00:04]} 2. c4 {[%emt 0:00:21]} Bb4+ {[%emt 0:00:04]} 3. Bd2 {[%emt 0:00:56]} Qe7 {[%emt 0:00:08]} 4. e4 {[%emt 0:05:02]} Nc6 {[%emt 0:00:42]} 5. Nf3 {[%emt 0:03:13]} Nf6 {[%emt 0:01:45]} 6. Bd3 {[%emt 0:03:14]} Bxd2+ {[%emt 0:01:51]} 7. Nbxd2 {[%emt 0:02:31]} e5 {[%emt 0:00:51]} 8. d5 {[%emt 0:06:57]} Nb4 {[%emt 0:01:29]} 9. Bb1 {[%emt 0:06:00]} a5 {[%emt 0:00:19]} 10. O-O {[%emt 0:04:22]} O-O {[%emt 0:00:10]} 11. a3 {[%emt 0:04:21]} Na6 {[%emt 0:01:11]} 12. Bc2 {[%emt 0:00:11]} d6 {[%emt 0:00:44]} 13. b4 {[%emt 0:00:59]} Bg4 {[%emt 0:00:26]} 14. Rb1 {[%emt 0:02:20]} c6 {[%emt 0:04:36]} 15. Qe2 {[%emt 0:12:39]} axb4 {[%emt 0:01:30]} 16. axb4 {[%emt 0:00:06]} c5 {[%emt 0:00:20]} 17. bxc5 {[%emt 0:02:04]} Nxc5 {[%emt 0:00:22]} 18. Rb2 {[%emt 0:00:58]} Ra3 {[%emt 0:02:01]} 19. Rfb1 {[%emt 0:03:55]} Rfa8 {[%emt 0:01:17]} 20. h3 {[%emt 0:03:32]} Bxf3 {[%emt 0:00:34]} 21. Nxf3 {[%emt 0:00:41]} Ra2 {[%emt 0:07:02]} 22. Nd2 {[%emt 0:03:31]} Nfd7 {[%emt 0:04:47]} 23. Nf1 {[%emt 0:01:10]} Qd8 {[%emt 0:03:06]} 24. Ne3 {[%emt 0:00:41]} g6 {[%emt 0:01:07]} 25. g3 {[%emt 0:01:33]} h5 {[%emt 0:03:58]} 26. Kg2 {[%emt 0:01:51]} Qg5 {[%emt 0:06:20]} 27. h4 {[%emt 0:02:17]} Qd8 {[%emt 0:01:34]} 28. Nd1 {[%emt 0:00:49]} Rxb2 29. Rxb2 {[%emt 0:00:22]} Ra3 {[%emt 0:03:36]} 30. Qd2 {[%emt 0:03:10]} Kg7 {[%emt 0:01:37]} 31. Rb5 {[%emt 0:06:15]} Qa8 {[%emt 0:05:57]} 32. Ne3 {[%emt 0:02:45]} Qd8 {[%emt 0:02:47]} 33. Qc1 {[%emt 0:02:47]} Ra5 {[%emt 0:02:05]} 34. Rb2 {[%emt 0:01:11]} Qa8 {[%emt 0:01:28]} 35. g4 {[%emt 0:02:22]} Ra1 {[%emt 0:04:16]} 36. Rb1 {[%emt 0:02:57]} Rxb1 {[%emt 0:00:41]} 37. Bxb1 {[%emt 0:00:08]} Qd8 {[%emt 0:07:29]} 38. gxh5 {[%emt 0:07:02]} Qxh4 {[%emt 0:00:51]} 39. hxg6 {[%emt 0:00:07]} 1/2-1/2

[Event "20th Prague Open 2022"]
[Site "Prague"]
[Date "2022.01.07"]
[Round "1.8"]
[White "Prazak, Daniel"]
[Black "Blahynka, Martin"]
[Result "0-1"]
[ECO "B51"]
[WhiteElo "1993"]
[BlackElo "2399"]
[Annotator "ChessBase"]
[PlyCount "72"]
[EventDate "2022.01.07"]
[EventType "swiss"]
[EventCountry "CZE"]
[SourceTitle "playchess.com"]
[Source "ChessBase"]
[SourceQuality "1"]
[TimeControl "40/5400+30:1800+30"]

1. e4 {[%emt 0:00:03]} c5 {[%emt 0:00:06]} 2. Nf3 {[%emt 0:00:34]} d6 {[%emt 0:00:07]} 3. Bb5+ {[%emt 0:00:13]} Nd7 {[%emt 0:00:08]} 4. d4 {[%emt 0:01:21]} cxd4 {[%emt 0:00:06]} 5. Qxd4 {[%emt 0:00:10]} a6 {[%emt 0:02:11]} 6. Bxd7+ {[%emt 0:00:53]} Bxd7 {[%emt 0:00:05]} 7. Nc3 {[%emt 0:00:48]} Rc8 {[%emt 0:08:27]} 8. O-O {[%emt 0:01:23]} e5 {[%emt 0:00:20]} 9. Qd3 {[%emt 0:00:09]} Qc7 {[%emt 0:00:50]} 10. Rd1 {[%emt 0:05:30]} h6 {[%emt 0:07:11]} 11. Nd2 {[%emt 0:04:21]} Nf6 {[%emt 0:00:10]} 12. Nf1 {[%emt 0:03:01]} Qc4 {[%emt 0:00:36]} 13. Qxc4 {[%emt 0:12:26]} Rxc4 {[%emt 0:02:14]} 14. Ne3 {[%emt 0:01:46]} Rd4 {[%emt 0:06:14]} 15. f3 {[%emt 0:02:49]} Rxd1+ {[%emt 0:00:29]} 16. Nexd1 {[%emt 0:00:59]} Be7 {[%emt 0:01:00]} 17. Ne3 {[%emt 0:10:19]} h5 {[%emt 0:10:41]} 18. b3 {[%emt 0:10:44]} Be6 {[%emt 0:14:49]} 19. Ba3 {[%emt 0:10:03]} Kd7 {[%emt 0:00:35]} 20. Rd1 {[%emt 0:01:17]} Rc8 {[%emt 0:17:17]} 21. Rd3 {[%emt 0:02:09]} Ne8 {[%emt 0:07:05]} 22. Ncd5 {[%emt 0:12:59]} Bxd5 {[%emt 0:02:57]} 23. Rxd5 {[%emt 0:00:08]} g6 {[%emt 0:10:08]} 24. Kf2 {[%emt 0:03:02]} Ke6 {[%emt 0:00:19]} 25. c4 {[%emt 0:03:07]} f5 {[%emt 0:00:23]} 26. Rd1 {[%emt 0:08:43]} fxe4 {[%emt 0:01:11]} 27. fxe4 {[%emt 0:00:23]} Nf6 {[%emt 0:00:06]} 28. Nd5 {[%emt 0:00:08]} Nxe4+ {[%emt 0:00:26]} 29. Ke3 {[%emt 0:02:41]} Nc5 {[%emt 0:00:05]} 30. Rf1 {[%emt 0:01:07]} Bg5+ {[%emt 0:01:13]} 31. Ke2 {[%emt 0:00:16]} b5 {[%emt 0:03:58]} 32. g3 {[%emt 0:00:33]} Ne4 {[%emt 0:01:07]} 33. Kd3 {[%emt 0:01:18]} Nd2 {[%emt 0:01:07]} 34. Rc1 {[%emt 0:01:35]} bxc4+ {[%emt 0:00:10]} 35. bxc4 {[%emt 0:00:04]} e4+ {[%emt 0:00:48]} 36. Ke2 {[%emt 0:00:15]} Nxc4 {[%emt 0:00:27]} 0-1

[Event "20th Prague Open 2022"]
[Site "Prague"]
[Date "2022.01.07"]
[Round "1.9"]
[White "Fus, Jakub"]
[Black "Poessel, Christian"]
[Result "1-0"]
[ECO "B43"]
[WhiteElo "2384"]
[BlackElo "2003"]
[Annotator "ChessBase"]
[PlyCount "49"]
[EventDate "2022.01.07"]
[EventType "swiss"]
[EventCountry "CZE"]
[SourceTitle "playchess.com"]
[Source "ChessBase"]
[SourceQuality "1"]
[TimeControl "40/5400+30:1800+30"]

1. e4 {[%emt 0:00:14]} c5 {[%emt 0:00:10]} 2. Nc3 {[%emt 0:00:42]} e6 {[%emt 0:00:09]} 3. Nf3 {[%emt 0:00:59]} a6 {[%emt 0:00:25]} 4. d4 {[%emt 0:01:26]} cxd4 {[%emt 0:00:48]} 5. Nxd4 {[%emt 0:00:08]} d6 {[%emt 0:00:03]} 6. g3 {[%emt 0:06:01]} Nf6 {[%emt 0:04:38]} 7. Bg2 {[%emt 0:00:38]} Be7 {[%emt 0:01:18]} 8. O-O {[%emt 0:01:13]} O-O {[%emt 0:00:40]} 9. b3 {[%emt 0:04:20]} Qc7 {[%emt 0:02:05]} 10. Bb2 {[%emt 0:01:41]} Bd7 {[%emt 0:00:12]} 11. Nce2 {[%emt 0:09:54]} Nc6 {[%emt 0:01:35]} 12. c4 {[%emt 0:01:37]} Rac8 {[%emt 0:01:19]} 13. Rc1 {[%emt 0:02:12]} Qb8 {[%emt 0:01:40]} 14. Re1 {[%emt 0:07:25]} b5 {[%emt 0:16:31]} 15. Nxc6 {[%emt 0:02:00]} Bxc6 {[%emt 0:01:42]} 16. cxb5 {[%emt 0:07:59]} axb5 {[%emt 0:01:12]} 17. Rxc6 {[%emt 0:01:42]} Rxc6 {[%emt 0:00:24]} 18. e5 {[%emt 0:00:13]} Nd5 {[%emt 0:00:23]} 19. Bxd5 {[%emt 0:01:04]} exd5 {[%emt 0:00:32]} 20. Nd4 {[%emt 0:00:05]} Qc8 {[%emt 0:06:43]} 21. exd6 {[%emt 0:05:58]} Bxd6 {[%emt 0:03:50]} 22. Nxc6 {[%emt 0:00:07]} Qxc6 {[%emt 0:01:18]} 23. Qg4 {[%emt 0:00:06]} f6 {[%emt 0:02:33]} 24. Qe6+ {[%emt 0:00:24]} Kh8 {[%emt 0:08:08]} 25. Ba3 {[%emt 0:00:24]} 1-0

[Event "20th Prague Open 2022"]
[Site "Prague"]
[Date "2022.01.07"]
[Round "1.10"]
[White "Walter, Ema"]
[Black "Kozak, Antoni"]
[Result "0-1"]
[ECO "B12"]
[WhiteElo "2000"]
[BlackElo "2356"]
[Annotator "ChessBase"]
[PlyCount "92"]
[EventDate "2022.01.07"]
[EventType "swiss"]
[EventCountry "CZE"]
[SourceTitle "playchess.com"]
[Source "ChessBase"]
[SourceQuality "1"]
[TimeControl "40/5400+30:1800+30"]

1. e4 {[%emt 0:00:04]} c6 {[%emt 0:00:30]} 2. d4 {[%emt 0:00:06]} d5 {[%emt 0:00:04]} 3. f3 {[%emt 0:00:03]} e6 {[%emt 0:00:04]} 4. Nc3 {[%emt 0:00:07]} Bb4 {[%emt 0:01:57]} 5. Bd2 {[%emt 0:00:05]} b6 {[%emt 0:05:05]} 6. g3 {[%emt 0:14:47]} Nf6 {[%emt 0:05:30]} 7. e5 {[%emt 0:06:19]} Ng8 {[%emt 0:01:37]} 8. Nce2 {[%emt 0:04:06]} Bxd2+ {[%emt 0:02:58]} 9. Qxd2 {[%emt 0:02:46]} Ne7 {[%emt 0:01:17]} 10. Nh3 {[%emt 0:06:00]} Ba6 {[%emt 0:02:51]} 11. Nf2 {[%emt 0:05:50]} c5 {[%emt 0:00:28]} 12. c3 {[%emt 0:09:21]} Nbc6 {[%emt 0:00:28]} 13. Nf4 {[%emt 0:02:35]} Bxf1 {[%emt 0:00:45]} 14. Kxf1 {[%emt 0:01:14]} O-O {[%emt 0:00:12]} 15. Kg2 {[%emt 0:02:43]} Rc8 {[%emt 0:09:38]} 16. Rac1 {[%emt 0:02:41]} Nf5 {[%emt 0:02:21]} 17. Ne2 {[%emt 0:02:35]} f6 {[%emt 0:01:23]} 18. Nf4 {[%emt 0:09:18]} Qe7 {[%emt 0:01:50]} 19. exf6 {[%emt 0:02:03]} Qxf6 {[%emt 0:00:05]} 20. Ng4 {[%emt 0:03:32]} Qf7 {[%emt 0:00:29]} 21. Rhe1 {[%emt 0:03:11]} Rce8 {[%emt 0:06:26]} 22. Ne5 {[%emt 0:01:18]} Nxe5 {[%emt 0:00:19]} 23. Rxe5 {[%emt 0:00:23]} cxd4 {[%emt 0:04:03]} 24. cxd4 {[%emt 0:00:23]} Nh4+ {[%emt 0:00:09]} 25. Kf2 {[%emt 0:06:59]} Ng6 {[%emt 0:00:14]} 26. Nxg6 {[%emt 0:03:31]} Qxf3+ {[%emt 0:00:05]} 27. Kg1 {[%emt 0:00:07]} hxg6 {[%emt 0:00:03]} 28. Qe2 {[%emt 0:04:24]} Re7 {[%emt 0:03:11]} 29. Rc6 {[%emt 0:04:28]} Qxe2 {[%emt 0:07:32]} 30. Rxe2 {[%emt 0:00:03]} Rf6 {[%emt 0:00:05]} 31. Kg2 {[%emt 0:03:09]} Kf7 {[%emt 0:00:02]} 32. Re5 {[%emt 0:00:30]} Rf5 {[%emt 0:00:56]} 33. h4 {[%emt 0:01:36]} Kf6 {[%emt 0:08:02]} 34. Re1 {[%emt 0:00:37]} g5 {[%emt 0:01:04]} 35. h5 {[%emt 0:00:33]} g4 {[%emt 0:02:09]} 36. Rh1 {[%emt 0:00:12]} Rf3 {[%emt 0:00:07]} 37. h6 {[%emt 0:00:35]} gxh6 {[%emt 0:00:06]} 38. Rxh6+ {[%emt 0:00:04]} Kf5 {[%emt 0:00:34]} 39. Rh5+ {[%emt 0:00:50]} Ke4 {[%emt 0:02:28]} 40. Rg5 {[%emt 0:00:13]} Rd3 {[%emt 0:00:39]} 41. Rxg4+ {[%emt 0:07:29]} Ke3 {[%emt 0:00:10]} 42. Rf4 {[%emt 0:03:58]} Rd2+ {[%emt 0:00:47]} 43. Kg1 {[%emt 0:02:50]} Rxd4 {[%emt 0:01:44]} 44. Rc3+ {[%emt 0:03:14]} Rd3 {[%emt 0:00:04]} 45. Rc2 {[%emt 0:03:44]} e5 {[%emt 0:00:34]} 46. Rff2 {[%emt 0:04:18]} Kd4 {[%emt 0:00:49]} 0-1

[Event "20th Prague Open 2022"]
[Site "Prague"]
[Date "2022.01.07"]
[Round "1.11"]
[White "Plischki, Sebastian"]
[Black "Elias, Jakub"]
[Result "1/2-1/2"]
[ECO "A64"]
[WhiteElo "2375"]
[BlackElo "2013"]
[Annotator "ChessBase"]
[PlyCount "80"]
[EventDate "2022.01.07"]
[EventType "swiss"]
[EventCountry "CZE"]
[SourceTitle "playchess.com"]
[Source "ChessBase"]
[SourceQuality "1"]
[TimeControl "40/5400+30:1800+30"]

1. d4 {[%emt 0:00:05]} Nf6 {[%emt 0:00:10]} 2. c4 {[%emt 0:00:09]} g6 {[%emt 0:00:08]} 3. g3 {[%emt 0:00:28]} Bg7 {[%emt 0:00:08]} 4. Bg2 {[%emt 0:00:07]} O-O {[%emt 0:00:13]} 5. Nc3 {[%emt 0:00:12]} c5 {[%emt 0:01:20]} 6. d5 {[%emt 0:03:39]} d6 {[%emt 0:02:36]} 7. Nf3 {[%emt 0:00:09]} e6 {[%emt 0:00:15]} 8. O-O {[%emt 0:00:12]} exd5 {[%emt 0:00:19]} 9. cxd5 {[%emt 0:00:05]} Re8 {[%emt 0:01:13]} 10. Nd2 {[%emt 0:00:57]} a6 {[%emt 0:01:38]} 11. a4 {[%emt 0:00:06]} Nbd7 {[%emt 0:00:59]} 12. Ra2 {[%emt 0:03:04]} Ne5 {[%emt 0:06:38]} 13. h3 {[%emt 0:04:31]} Nh5 {[%emt 0:04:17]} 14. Kh2 {[%emt 0:01:41]} f5 {[%emt 0:02:29]} 15. f4 {[%emt 0:01:27]} Nf7 {[%emt 0:05:55]} 16. e4 {[%emt 0:04:02]} Nf6 {[%emt 0:04:01]} 17. Re1 {[%emt 0:05:00]} b6 {[%emt 0:06:25]} 18. Nc4 {[%emt 0:05:04]} fxe4 {[%emt 0:02:51]} 19. Nxe4 {[%emt 0:00:25]} Nxe4 {[%emt 0:04:50]} 20. Rxe4 {[%emt 0:00:32]} Rxe4 {[%emt 0:02:10]} 21. Bxe4 {[%emt 0:00:07]} Bd7 {[%emt 0:00:42]} 22. g4 {[%emt 0:06:56]} b5 {[%emt 0:05:36]} 23. axb5 {[%emt 0:10:27]} axb5 {[%emt 0:00:11]} 24. Rxa8 {[%emt 0:00:05]} Qxa8 {[%emt 0:00:10]} 25. Nb6 {[%emt 0:01:16]} Qd8 {[%emt 0:02:22]} 26. Nxd7 {[%emt 0:00:08]} Qxd7 {[%emt 0:00:08]} 27. g5 {[%emt 0:01:29]} Qe7 {[%emt 0:03:51]} 28. Bf3 {[%emt 0:02:23]} Bd4 {[%emt 0:02:10]} 29. h4 {[%emt 0:01:49]} Kf8 {[%emt 0:06:26]} 30. Qe2 {[%emt 0:05:04]} Qxe2+ {[%emt 0:02:59]} 31. Bxe2 {[%emt 0:00:04]} c4 {[%emt 0:03:35]} 32. Bg4 {[%emt 0:07:25]} Nd8 {[%emt 0:03:30]} 33. Bc8 {[%emt 0:01:53]} b4 {[%emt 0:00:33]} 34. Ba6 {[%emt 0:06:24]} c3 {[%emt 0:00:48]} 35. b3 {[%emt 0:02:48]} Bf2 {[%emt 0:04:09]} 36. Kg2 {[%emt 0:01:17]} Bxh4 {[%emt 0:04:03]} 37. Kf3 {[%emt 0:00:28]} Kg7 {[%emt 0:00:52]} 38. Be3 {[%emt 0:04:42]} h6 {[%emt 0:01:38]} 39. gxh6+ {[%emt 0:06:19]} Kxh6 {[%emt 0:00:10]} 40. Ke4 {[%emt 0:07:47]} Nf7 {[%emt 0:09:36]} 1/2-1/2

[Event "20th Prague Open 2022"]
[Site "Prague"]
[Date "2022.01.07"]
[Round "1.12"]
[White "Shatil, Shir"]
[Black "Van Osch, Mees"]
[Result "0-1"]
[ECO "E90"]
[WhiteElo "1977"]
[BlackElo "2364"]
[Annotator "ChessBase"]
[PlyCount "53"]
[EventDate "2022.01.07"]
[EventType "swiss"]
[EventCountry "CZE"]
[SourceTitle "playchess.com"]
[Source "ChessBase"]
[SourceQuality "1"]
[TimeControl "40/5400+30:1800+30"]

1. d4 {[%emt 0:00:02]} Nf6 {[%emt 0:00:04]} 2. c4 {[%emt 0:00:04]} g6 {[%emt 0:00:03]} 3. Nc3 {[%emt 0:00:04]} Bg7 {[%emt 0:00:03]} 4. e4 {[%emt 0:00:04]} d6 {[%emt 0:00:03]} 5. Nf3 {[%emt 0:00:04]} O-O {[%emt 0:00:03]} 6. h3 {[%emt 0:00:02]} e5 {[%emt 0:00:04]} 7. d5 {[%emt 0:00:03]} a5 {[%emt 0:00:02]} 8. Bg5 {[%emt 0:00:05]} Na6 {[%emt 0:00:13]} 9. Nd2 {[%emt 0:01:50]} Qe8 {[%emt 0:00:08]} 10. Be2 {[%emt 0:00:54]} Nd7 {[%emt 0:00:06]} 11. a3 {[%emt 0:00:49]} Nb6 {[%emt 0:00:22]} 12. b3 {[%emt 0:00:53]} f6 {[%emt 0:02:39]} 13. Be3 {[%emt 0:00:07]} f5 {[%emt 0:00:49]} 14. f3 {[%emt 0:07:38]} Bd7 {[%emt 0:01:04]} 15. Qc2 {[%emt 0:00:45]} Nc5 {[%emt 0:04:50]} 16. O-O {[%emt 0:03:54]} Bf6 {[%emt 0:50:37]} 17. b4 {[%emt 0:14:49]} Nca4 {[%emt 0:00:14]} 18. c5 {[%emt 0:16:28]} Nxc3 {[%emt 0:00:13]} 19. Qxc3 {[%emt 0:00:13]} Nc8 {[%emt 0:01:03]} 20. cxd6 {[%emt 0:05:37]} cxd6 {[%emt 0:00:25]} 21. Qc7 {[%emt 0:00:25]} b6 {[%emt 0:08:59]} 22. Bxb6 {[%emt 0:19:31]} Nxb6 {[%emt 0:14:10]} 23. Qxb6 {[%emt 0:00:05]} Bd8 {[%emt 0:00:20]} 24. Qb7 {[%emt 0:12:15]} Rc8 {[%emt 0:00:53]} 25. Nc4 {[%emt 0:03:09]} Rc7 {[%emt 0:01:57]} 26. Qa8 {[%emt 0:04:45]} Rxc4 {[%emt 0:01:54]} 27. Qa6 {[%emt 0:02:25]} 0-1